[Event "Early-Titled-Tuesday-Blitz-February-06-2024"]
[Site "Chess.com"]
[Date "2024.02.06"]
[Round "4"]
[White "Jumbo"]
[Black "LyonBeast"]
[Result "0-1"]
[WhiteElo "2861"]
[BlackElo "3154"]
[TimeControl "180+1"]
[EndTime "8:40:12 PST"]
[Termination "LyonBeast won on time"]

1. d4 {[%clk 0:03:00.9]} 1... Nf6 {[%clk 0:03:00.5]} 2. Nf3 {[%clk 0:02:59.3]}
2... g6 {[%clk 0:02:59.9]} 3. Bf4 {[%clk 0:02:59.6]} 3... Bg7 {[%clk 0:02:59.7]}
4. e3 {[%clk 0:03:00.2]} 4... c5 {[%clk 0:02:57.1]} 5. Nbd2 {[%clk 0:02:57.9]}
5... d6 {[%clk 0:02:49.3]} 6. Bb5+ {[%clk 0:02:39.4]} 6... Bd7 {[%clk 0:02:48]}
7. Bd3 {[%clk 0:02:32.4]} 7... O-O {[%clk 0:02:37.5]} 8. O-O {[%clk 0:02:27.5]}
8... Qb6 {[%clk 0:02:34.5]} 9. Nc4 {[%clk 0:02:23.4]} 9... Qc7 {[%clk
0:02:33.3]} 10. a4 {[%clk 0:02:23.8]} 10... Nh5 {[%clk 0:02:19.1]} 11. Bg5
{[%clk 0:02:22.8]} 11... d5 {[%clk 0:01:58.1]} 12. Ncd2 {[%clk 0:01:58.1]} 12...
c4 {[%clk 0:01:57.7]} 13. Be2 {[%clk 0:01:57.8]} 13... Nc6 {[%clk 0:01:57.5]}
14. c3 {[%clk 0:01:55.3]} 14... h6 {[%clk 0:01:35.9]} 15. Bh4 {[%clk 0:01:51.3]}
15... g5 {[%clk 0:01:36.2]} 16. Ne1 {[%clk 0:01:37.2]} 16... Nf4 {[%clk
0:01:34.6]} 17. exf4 {[%clk 0:01:24.3]} 17... gxh4 {[%clk 0:01:34.5]} 18. g3
{[%clk 0:01:24.9]} 18... Bf5 {[%clk 0:01:28.4]} 19. Bg4 {[%clk 0:01:17.6]} 19...
Bh7 {[%clk 0:01:23]} 20. Ng2 {[%clk 0:01:08.2]} 20... hxg3 {[%clk 0:01:22.7]}
21. hxg3 {[%clk 0:01:08]} 21... e6 {[%clk 0:01:21.4]} 22. Re1 {[%clk 0:01:07.5]}
22... Rae8 {[%clk 0:01:20.7]} 23. Nh4 {[%clk 0:01:01.4]} 23... Kh8 {[%clk
0:01:17.4]} 24. Kg2 {[%clk 0:01:00.7]} 24... Rg8 {[%clk 0:01:13.3]} 25. Bh5
{[%clk 0:01:00.6]} 25... Bf6 {[%clk 0:01:10.1]} 26. Nhf3 {[%clk 0:00:53.5]}
26... Ref8 {[%clk 0:00:49]} 27. Kh2 {[%clk 0:00:53]} 27... Rg7 {[%clk
0:00:47.7]} 28. Qe2 {[%clk 0:00:53]} 28... Bd3 {[%clk 0:00:46.1]} 29. Qe3 {[%clk
0:00:53.3]} 29... Bf5 {[%clk 0:00:43.6]} 30. Rh1 {[%clk 0:00:52.6]} 30... Rfg8
{[%clk 0:00:39]} 31. Kg2 {[%clk 0:00:51.5]} 31... Rh7 {[%clk 0:00:39.6]} 32. Rh2
{[%clk 0:00:51.1]} 32... Ne7 {[%clk 0:00:37.9]} 33. Rah1 {[%clk 0:00:50.2]}
33... Bd3 {[%clk 0:00:34.8]} 34. Ne5 {[%clk 0:00:42.6]} 34... Nf5 {[%clk
0:00:35.4]} 35. Qe1 {[%clk 0:00:38.6]} 35... Bc2 {[%clk 0:00:26.9]} 36. Bf3
{[%clk 0:00:26.5]} 36... Bxa4 {[%clk 0:00:23]} 37. g4 {[%clk 0:00:21.4]} 37...
Bxe5 {[%clk 0:00:17.5]} 38. fxe5 {[%clk 0:00:14.8]} 38... Rg6 {[%clk 0:00:17.7]}
39. Kf1 {[%clk 0:00:14.2]} 39... Ne7 {[%clk 0:00:12.4]} 40. Qe3 {[%clk
0:00:12.9]} 40... Ng8 {[%clk 0:00:10.5]} 41. g5 {[%clk 0:00:12.3]} 41... Bc2
{[%clk 0:00:09.1]} 42. gxh6 {[%clk 0:00:12.1]} 42... f6 {[%clk 0:00:09.7]} 43.
Bh5 {[%clk 0:00:10.7]} 43... Rgxh6 {[%clk 0:00:08.9]} 44. f4 {[%clk 0:00:08.8]}
44... fxe5 {[%clk 0:00:08.8]} 45. fxe5 {[%clk 0:00:06.4]} 45... Bd3+ {[%clk
0:00:08.8]} 46. Ke1 {[%clk 0:00:04]} 46... Qa5 {[%clk 0:00:09.1]} 47. Kf2 {[%clk
0:00:03.5]} 47... Qb6 {[%clk 0:00:08.6]} 48. b4 {[%clk 0:00:02.1]} 48... a5
{[%clk 0:00:08]} 49. bxa5 {[%clk 0:00:01.9]} 49... Qxa5 {[%clk 0:00:08.9]} 50.
Qf4 {[%clk 0:00:02.2]} 50... Qxc3 {[%clk 0:00:08.5]} 51. Bf7 {[%clk 0:00:02.6]}
51... Rxh2+ {[%clk 0:00:07.7]} 52. Rxh2 {[%clk 0:00:03.5]} 52... Qxd2+ {[%clk
0:00:08.3]} 0-1

[Event "Early-Titled-Tuesday-Blitz-February-06-2024"]
[Site "Chess.com"]
[Date "2024.02.06"]
[Round "4"]
[White "h4parah5"]
[Black "BestStelker"]
[Result "1-0"]
[WhiteElo "2932"]
[BlackElo "2712"]
[TimeControl "180+1"]
[EndTime "8:40:12 PST"]
[Termination "h4parah5 won by resignation"]

1. Nf3 {[%clk 0:03:00.9]} 1... d5 {[%clk 0:02:58.6]} 2. e3 {[%clk 0:03:00.8]}
2... Bf5 {[%clk 0:02:56.2]} 3. c4 {[%clk 0:02:57.6]} 3... e6 {[%clk 0:02:56.4]}
4. Qb3 {[%clk 0:02:50]} 4... b6 {[%clk 0:02:18.6]} 5. Nd4 {[%clk 0:02:33.3]}
5... Bxb1 {[%clk 0:02:17.2]} 6. Rxb1 {[%clk 0:02:26.6]} 6... c6 {[%clk
0:02:17.6]} 7. Qc2 {[%clk 0:02:19.1]} 7... Qd7 {[%clk 0:02:11.8]} 8. b4 {[%clk
0:02:14.7]} 8... Nf6 {[%clk 0:02:03.9]} 9. cxd5 {[%clk 0:02:12.7]} 9... Nxd5
{[%clk 0:01:55.9]} 10. a3 {[%clk 0:02:00.8]} 10... Bd6 {[%clk 0:01:54.8]} 11. g3
{[%clk 0:01:59.8]} 11... O-O {[%clk 0:01:52.2]} 12. Bg2 {[%clk 0:01:59.4]} 12...
c5 {[%clk 0:01:44.4]} 13. bxc5 {[%clk 0:01:50.4]} 13... Bxc5 {[%clk 0:01:37.1]}
14. Bb2 {[%clk 0:01:49.9]} 14... Rc8 {[%clk 0:01:19.9]} 15. Qb3 {[%clk
0:01:43.2]} 15... Bxd4 {[%clk 0:01:11.4]} 16. Bxd4 {[%clk 0:01:44.1]} 16... Nc6
{[%clk 0:01:11.9]} 17. Ba1 {[%clk 0:01:42.8]} 17... Na5 {[%clk 0:01:08.8]} 18.
Qa2 {[%clk 0:01:41.3]} 18... Rc7 {[%clk 0:00:55.9]} 19. O-O {[%clk 0:01:24.6]}
19... Rac8 {[%clk 0:00:56.5]} 20. Qb2 {[%clk 0:01:24.7]} 20... f6 {[%clk
0:00:52.3]} 21. Rfc1 {[%clk 0:01:20.7]} 21... Nc4 {[%clk 0:00:43.8]} 22. Qa2
{[%clk 0:01:18.5]} 22... Na5 {[%clk 0:00:41.2]} 23. Rxc7 {[%clk 0:01:16.9]}
23... Rxc7 {[%clk 0:00:42.1]} 24. h4 {[%clk 0:01:13.7]} 24... Nc4 {[%clk
0:00:20.6]} 25. h5 {[%clk 0:01:06]} 25... h6 {[%clk 0:00:19.8]} 26. Rc1 {[%clk
0:01:00.4]} 26... Ne5 {[%clk 0:00:16.1]} 27. Rxc7 {[%clk 0:00:57.8]} 27... Nxc7
{[%clk 0:00:17]} 28. d4 {[%clk 0:00:57]} 28... Nc6 {[%clk 0:00:13.5]} 29. Qc2
{[%clk 0:00:56.3]} 29... Nd5 {[%clk 0:00:10.7]} 30. Bf3 {[%clk 0:00:49.1]} 30...
f5 {[%clk 0:00:10.7]} 31. g4 {[%clk 0:00:44.4]} 31... fxg4 {[%clk 0:00:07.6]}
32. Bxg4 {[%clk 0:00:45.3]} 32... Nf6 {[%clk 0:00:07.8]} 33. Bf3 {[%clk
0:00:40.2]} 33... Ne7 {[%clk 0:00:08.2]} 34. e4 {[%clk 0:00:35.5]} 34... Qc6
{[%clk 0:00:06.7]} 35. Qd1 {[%clk 0:00:27.6]} 35... Qd7 {[%clk 0:00:04.3]} 36.
Kg2 {[%clk 0:00:25.1]} 36... Qc7 {[%clk 0:00:04.4]} 37. Bb2 {[%clk 0:00:17.9]}
37... Qf4 {[%clk 0:00:04.2]} 38. Bc1 {[%clk 0:00:17.8]} 38... Qc7 {[%clk
0:00:03.4]} 39. Be3 {[%clk 0:00:14.1]} 39... Qd7 {[%clk 0:00:03.6]} 40. Qb3
{[%clk 0:00:13.3]} 40... Kh8 {[%clk 0:00:03.2]} 41. a4 {[%clk 0:00:13.2]} 41...
Qc7 {[%clk 0:00:02.7]} 42. Qxe6 {[%clk 0:00:12.9]} 42... Neg8 {[%clk 0:00:02.4]}
43. e5 {[%clk 0:00:12.7]} 43... Nd7 {[%clk 0:00:02.6]} 44. Qf7 {[%clk
0:00:12.2]} 44... Qd8 {[%clk 0:00:02.5]} 45. Be4 {[%clk 0:00:11.9]} 45... Nf8
{[%clk 0:00:01.5]} 46. d5 {[%clk 0:00:09.7]} 46... Nd7 {[%clk 0:00:01.5]} 47. e6
{[%clk 0:00:09.2]} 47... Ndf6 {[%clk 0:00:01.7]} 48. Qg6 {[%clk 0:00:07.8]}
48... Nxe4 {[%clk 0:00:01.7]} 49. Qxe4 {[%clk 0:00:08.2]} 49... Nf6 {[%clk
0:00:02.5]} 50. e7 {[%clk 0:00:08.4]} 50... Qe8 {[%clk 0:00:01.8]} 51. Qe5
{[%clk 0:00:08.4]} 51... Qxh5 {[%clk 0:00:01.9]} 52. Qxh5 {[%clk 0:00:08.5]} 1-0

[Event "Early-Titled-Tuesday-Blitz-February-06-2024"]
[Site "Chess.com"]
[Date "2024.02.06"]
[Round "4"]
[White "DrCeltic"]
[Black "NEPHILIM-SLAYER"]
[Result "0-1"]
[WhiteElo "2533"]
[BlackElo "2743"]
[TimeControl "180+1"]
[EndTime "8:40:12 PST"]
[Termination "NEPHILIM-SLAYER won on time"]

1. e4 {[%clk 0:02:59.8]} 1... c6 {[%clk 0:02:59.2]} 2. d4 {[%clk 0:03:00]} 2...
d5 {[%clk 0:02:59.4]} 3. exd5 {[%clk 0:03:00.9]} 3... cxd5 {[%clk 0:02:59.6]} 4.
c4 {[%clk 0:03:01.4]} 4... Nf6 {[%clk 0:02:59.9]} 5. Nc3 {[%clk 0:03:01.8]} 5...
Nc6 {[%clk 0:03:00.4]} 6. Bg5 {[%clk 0:03:02.4]} 6... Be6 {[%clk 0:02:53.5]} 7.
Be2 {[%clk 0:03:02.2]} 7... Qa5 {[%clk 0:02:35.8]} 8. c5 {[%clk 0:03:01.5]} 8...
Ne4 {[%clk 0:02:35.2]} 9. Bd2 {[%clk 0:03:01.6]} 9... Nxd2 {[%clk 0:02:28.4]}
10. Qxd2 {[%clk 0:03:02.5]} 10... g6 {[%clk 0:02:29.2]} 11. Nf3 {[%clk 0:03:02]}
11... Bg7 {[%clk 0:02:29.6]} 12. O-O {[%clk 0:03:01.7]} 12... Bg4 {[%clk
0:02:24.4]} 13. Qf4 {[%clk 0:02:48.3]} 13... Bxf3 {[%clk 0:02:22.9]} 14. Bxf3
{[%clk 0:02:48.6]} 14... O-O {[%clk 0:02:19.7]} 15. Nxd5 {[%clk 0:02:45.4]}
15... Nxd4 {[%clk 0:02:14.6]} 16. Nxe7+ {[%clk 0:02:43.5]} 16... Kh8 {[%clk
0:02:14.2]} 17. Rac1 {[%clk 0:02:24.4]} 17... Qb4 {[%clk 0:02:10.1]} 18. Kh1
{[%clk 0:02:17]} 18... Rae8 {[%clk 0:02:09.3]} 19. Nd5 {[%clk 0:02:10.7]} 19...
Qxb2 {[%clk 0:02:08.8]} 20. Rb1 {[%clk 0:02:02.3]} 20... Qxa2 {[%clk 0:02:02.3]}
21. Nf6 {[%clk 0:02:02.1]} 21... Rd8 {[%clk 0:01:54.3]} 22. Qh4 {[%clk
0:01:57.8]} 22... h6 {[%clk 0:01:46.9]} 23. Bxb7 {[%clk 0:01:37.1]} 23... Qe6
{[%clk 0:01:32.8]} 24. Ng4 {[%clk 0:01:27.8]} 24... Nf5 {[%clk 0:01:09.8]} 25.
Qh3 {[%clk 0:01:21.6]} 25... h5 {[%clk 0:01:09.6]} 26. c6 {[%clk 0:01:15.6]}
26... Qd6 {[%clk 0:00:49.3]} 27. Ne3 {[%clk 0:01:09.1]} 27... Nd4 {[%clk
0:00:47.2]} 28. Rbd1 {[%clk 0:01:02.6]} 28... Qc7 {[%clk 0:00:45.8]} 29. Rc1
{[%clk 0:00:52.1]} 29... a5 {[%clk 0:00:38.1]} 30. g4 {[%clk 0:00:39.6]} 30...
Ne2 {[%clk 0:00:32.4]} 31. gxh5 {[%clk 0:00:31.9]} 31... Nf4 {[%clk 0:00:17.3]}
32. Qg3 {[%clk 0:00:32]} 32... Be5 {[%clk 0:00:17.8]} 33. hxg6 {[%clk
0:00:29.7]} 33... fxg6 {[%clk 0:00:17.9]} 34. Ng4 {[%clk 0:00:26.4]} 34... Rd3
{[%clk 0:00:14.1]} 35. Qh4+ {[%clk 0:00:24.1]} 35... Kg8 {[%clk 0:00:12.6]} 36.
Rce1 {[%clk 0:00:17.6]} 36... Rh3 {[%clk 0:00:12]} 37. Qxh3 {[%clk 0:00:08.4]}
37... Nxh3 {[%clk 0:00:12]} 38. Rxe5 {[%clk 0:00:07.7]} 38... Nxf2+ {[%clk
0:00:10.8]} 39. Rxf2 {[%clk 0:00:03.4]} 39... Rxf2 {[%clk 0:00:10.4]} 40. Nxf2
{[%clk 0:00:04]} 40... Qxe5 {[%clk 0:00:10.2]} 41. Kg2 {[%clk 0:00:04.7]} 41...
a4 {[%clk 0:00:10.1]} 42. Ng4 {[%clk 0:00:04.9]} 42... Qf4 {[%clk 0:00:07]} 43.
Kh3 {[%clk 0:00:02.5]} 43... a3 {[%clk 0:00:06.9]} 44. Bc8 {[%clk 0:00:01.3]}
44... Qf3+ {[%clk 0:00:05.2]} 0-1

[Event "Early-Titled-Tuesday-Blitz-February-06-2024"]
[Site "Chess.com"]
[Date "2024.02.06"]
[Round "4"]
[White "VinzentSpitzl"]
[Black "Kildepiotr"]
[Result "1/2-1/2"]
[WhiteElo "2467"]
[BlackElo "2680"]
[TimeControl "180+1"]
[EndTime "8:40:12 PST"]
[Termination "Game drawn - insufficient material"]

1. e4 {[%clk 0:02:59.9]} 1... e6 {[%clk 0:02:59.3]} 2. d4 {[%clk 0:02:59.9]}
2... d5 {[%clk 0:02:59.7]} 3. Nd2 {[%clk 0:03:00.7]} 3... c5 {[%clk 0:02:59.3]}
4. exd5 {[%clk 0:03:00.9]} 4... Qxd5 {[%clk 0:02:59.4]} 5. Ngf3 {[%clk
0:03:01.5]} 5... cxd4 {[%clk 0:02:59.6]} 6. Bc4 {[%clk 0:03:01.2]} 6... Qd7
{[%clk 0:02:59.4]} 7. O-O {[%clk 0:03:01.7]} 7... Nc6 {[%clk 0:02:59.4]} 8. Nb3
{[%clk 0:03:00.5]} 8... Nf6 {[%clk 0:02:59]} 9. Nbxd4 {[%clk 0:03:00.5]} 9...
Nxd4 {[%clk 0:02:59.1]} 10. Qxd4 {[%clk 0:03:00.8]} 10... Qxd4 {[%clk
0:02:58.9]} 11. Nxd4 {[%clk 0:03:01.7]} 11... Bd7 {[%clk 0:02:59.4]} 12. Be2
{[%clk 0:02:55.7]} 12... Bc5 {[%clk 0:02:54.4]} 13. Nb3 {[%clk 0:02:56]} 13...
Be7 {[%clk 0:02:53]} 14. Bf3 {[%clk 0:02:56.1]} 14... Bc6 {[%clk 0:02:43.3]} 15.
Bxc6+ {[%clk 0:02:54.8]} 15... bxc6 {[%clk 0:02:44.2]} 16. Be3 {[%clk
0:02:54.8]} 16... Nd5 {[%clk 0:02:41.2]} 17. Bd4 {[%clk 0:02:52.8]} 17... f6
{[%clk 0:02:39.5]} 18. Rfe1 {[%clk 0:02:41]} 18... e5 {[%clk 0:02:39.4]} 19. Bc5
{[%clk 0:02:41.3]} 19... Bxc5 {[%clk 0:02:36.3]} 20. Nxc5 {[%clk 0:02:42.2]}
20... Kf7 {[%clk 0:02:36.6]} 21. a3 {[%clk 0:02:35.1]} 21... Rhd8 {[%clk
0:02:34.5]} 22. Rad1 {[%clk 0:02:23.2]} 22... Rab8 {[%clk 0:02:25.6]} 23. c4
{[%clk 0:02:18.8]} 23... Nf4 {[%clk 0:02:22.4]} 24. g3 {[%clk 0:01:52.1]} 24...
Ne2+ {[%clk 0:02:03.6]} 25. Kf1 {[%clk 0:01:51.8]} 25... Nd4 {[%clk 0:02:03.7]}
26. b4 {[%clk 0:01:47.3]} 26... Nc2 {[%clk 0:02:00.3]} 27. Rxd8 {[%clk
0:01:36.9]} 27... Rxd8 {[%clk 0:02:01.2]} 28. Rc1 {[%clk 0:01:36.8]} 28... Nxa3
{[%clk 0:01:57.3]} 29. Ra1 {[%clk 0:01:36.1]} 29... Nxc4 {[%clk 0:01:56.6]} 30.
Rxa7+ {[%clk 0:01:36.3]} 30... Kg6 {[%clk 0:01:54.4]} 31. Ne6 {[%clk 0:01:30.7]}
31... Rg8 {[%clk 0:01:49.5]} 32. Rc7 {[%clk 0:01:26.8]} 32... Nd2+ {[%clk
0:01:35.2]} 33. Kg2 {[%clk 0:01:25.4]} 33... h5 {[%clk 0:01:26.1]} 34. Rxc6
{[%clk 0:01:22.4]} 34... Kf5 {[%clk 0:01:26.1]} 35. Nc7 {[%clk 0:01:10.8]} 35...
Ne4 {[%clk 0:01:10.7]} 36. b5 {[%clk 0:01:03.6]} 36... Rd8 {[%clk 0:01:06.8]}
37. Rc2 {[%clk 0:00:56.9]} 37... Rb8 {[%clk 0:01:01.1]} 38. Rc6 {[%clk 0:00:48]}
38... Rd8 {[%clk 0:00:52.2]} 39. Rc2 {[%clk 0:00:47.7]} 39... Rd6 {[%clk
0:00:50.2]} 40. Rb2 {[%clk 0:00:44.2]} 40... Nc5 {[%clk 0:00:44.5]} 41. b6
{[%clk 0:00:38.4]} 41... Nb7 {[%clk 0:00:44.5]} 42. h4 {[%clk 0:00:34]} 42... g5
{[%clk 0:00:33.1]} 43. hxg5 {[%clk 0:00:33.9]} 43... fxg5 {[%clk 0:00:34]} 44.
Rb5 {[%clk 0:00:32.6]} 44... h4 {[%clk 0:00:28.1]} 45. Nd5 {[%clk 0:00:30.1]}
45... hxg3 {[%clk 0:00:20.4]} 46. Kxg3 {[%clk 0:00:28.4]} 46... Ke6 {[%clk
0:00:18.7]} 47. Ne3 {[%clk 0:00:27.9]} 47... Rd4 {[%clk 0:00:15.7]} 48. Ng4
{[%clk 0:00:21.6]} 48... Rd5 {[%clk 0:00:15.5]} 49. Rxd5 {[%clk 0:00:17.5]}
49... Kxd5 {[%clk 0:00:16.4]} 50. Ne3+ {[%clk 0:00:18]} 50... Kc5 {[%clk
0:00:16.4]} 51. Kg4 {[%clk 0:00:18.3]} 51... Kxb6 {[%clk 0:00:16.6]} 52. Kxg5
{[%clk 0:00:18.8]} 52... Kc5 {[%clk 0:00:17.2]} 53. Kf5 {[%clk 0:00:19.3]} 53...
Kd4 {[%clk 0:00:16.2]} 54. Ng4 {[%clk 0:00:19.3]} 54... e4 {[%clk 0:00:15.8]}
55. Nf6 {[%clk 0:00:18.5]} 55... Nc5 {[%clk 0:00:14.7]} 56. Nxe4 {[%clk
0:00:18.3]} 56... Nxe4 {[%clk 0:00:15]} 57. Kf4 {[%clk 0:00:18.9]} 57... Nxf2
{[%clk 0:00:15.4]} 1/2-1/2

[Event "Early-Titled-Tuesday-Blitz-February-06-2024"]
[Site "Chess.com"]
[Date "2024.02.06"]
[Round "4"]
[White "maurovargas01"]
[Black "Bekkedahl"]
[Result "1-0"]
[WhiteElo "1893"]
[BlackElo "2229"]
[TimeControl "180+1"]
[EndTime "8:40:12 PST"]
[Termination "maurovargas01 won by resignation"]

1. e4 {[%clk 0:02:59]} 1... c5 {[%clk 0:02:56.9]} 2. Nc3 {[%clk 0:02:54.4]} 2...
g6 {[%clk 0:02:56.4]} 3. f4 {[%clk 0:02:54.7]} 3... a6 {[%clk 0:02:51.5]} 4. Nf3
{[%clk 0:02:55.6]} 4... b5 {[%clk 0:02:51.1]} 5. d3 {[%clk 0:02:55.7]} 5... Bb7
{[%clk 0:02:51.7]} 6. Nd5 {[%clk 0:02:50.7]} 6... e6 {[%clk 0:02:49.8]} 7. Ne3
{[%clk 0:02:50.6]} 7... Bg7 {[%clk 0:02:49.3]} 8. c3 {[%clk 0:02:50.5]} 8... Ne7
{[%clk 0:02:43.8]} 9. g4 {[%clk 0:02:48.4]} 9... O-O {[%clk 0:02:37]} 10. Bg2
{[%clk 0:02:47.5]} 10... d5 {[%clk 0:02:27.6]} 11. e5 {[%clk 0:02:46.9]} 11...
Nbc6 {[%clk 0:02:19.6]} 12. O-O {[%clk 0:02:44.3]} 12... d4 {[%clk 0:02:12]} 13.
Nc2 {[%clk 0:02:42.1]} 13... dxc3 {[%clk 0:02:05.8]} 14. bxc3 {[%clk 0:02:41.3]}
14... Nd5 {[%clk 0:01:59.2]} 15. Qe1 {[%clk 0:02:34.7]} 15... b4 {[%clk
0:01:35.9]} 16. c4 {[%clk 0:02:30.9]} 16... Nc3 {[%clk 0:01:11.1]} 17. Qd2
{[%clk 0:02:29.8]} 17... a5 {[%clk 0:00:49.8]} 18. Bb2 {[%clk 0:02:26.5]} 18...
Na4 {[%clk 0:00:44.8]} 19. Ne3 {[%clk 0:02:12.4]} 19... Nb6 {[%clk 0:00:42.7]}
20. Qf2 {[%clk 0:02:02]} 20... a4 {[%clk 0:00:31.7]} 21. Rad1 {[%clk 0:01:56.5]}
21... a3 {[%clk 0:00:20.1]} 22. Ba1 {[%clk 0:01:53]} 22... Na4 {[%clk 0:00:21]}
23. f5 {[%clk 0:01:43.6]} 23... exf5 {[%clk 0:00:19.9]} 24. gxf5 {[%clk
0:01:42.9]} 24... Nd4 {[%clk 0:00:14.1]} 25. f6 {[%clk 0:01:35.1]} 25... Bh6
{[%clk 0:00:13.1]} 26. Ng4 {[%clk 0:01:25.7]} 26... Nxf3+ {[%clk 0:00:12.2]} 27.
Bxf3 {[%clk 0:01:23.2]} 27... Bg5 {[%clk 0:00:12.7]} 28. Bxb7 {[%clk 0:01:20.6]}
28... h5 {[%clk 0:00:13]} 29. Ne3 {[%clk 0:01:16.7]} 29... Rb8 {[%clk
0:00:12.4]} 30. Be4 {[%clk 0:01:16]} 30... Nb2 {[%clk 0:00:12.4]} 31. Bxb2
{[%clk 0:01:13.8]} 31... axb2 {[%clk 0:00:12]} 32. Rb1 {[%clk 0:01:11.1]} 32...
Qd4 {[%clk 0:00:12.3]} 33. Rfe1 {[%clk 0:01:09.3]} 33... Rbe8 {[%clk 0:00:11.2]}
34. Kf1 {[%clk 0:01:01]} 34... Qxe5 {[%clk 0:00:09.7]} 35. Rxb2 {[%clk
0:00:56.6]} 35... Bxf6 {[%clk 0:00:09.3]} 36. Rd2 {[%clk 0:00:54.5]} 36... Qg5
{[%clk 0:00:08.4]} 37. Nd5 {[%clk 0:00:51.5]} 37... Bd4 {[%clk 0:00:08.2]} 38.
Qg2 {[%clk 0:00:47.6]} 38... Re5 {[%clk 0:00:08.5]} 39. Qxg5 {[%clk 0:00:47.1]}
39... Rxg5 {[%clk 0:00:08.2]} 40. Rg2 {[%clk 0:00:46.8]} 40... Re5 {[%clk
0:00:08.1]} 41. Nf6+ {[%clk 0:00:44]} 41... Kg7 {[%clk 0:00:08.7]} 42. Nd5
{[%clk 0:00:39.5]} 42... Ra8 {[%clk 0:00:07.7]} 43. Bf3 {[%clk 0:00:33.3]} 43...
Ra3 {[%clk 0:00:08]} 44. Rxe5 {[%clk 0:00:31.6]} 44... Bxe5 {[%clk 0:00:07.8]}
45. Be4 {[%clk 0:00:31.4]} 45... Rc3 {[%clk 0:00:06.7]} 46. Nxc3 {[%clk
0:00:27.6]} 46... bxc3 {[%clk 0:00:07.6]} 47. Rc2 {[%clk 0:00:26.4]} 47... f5
{[%clk 0:00:08.3]} 48. Bd5 {[%clk 0:00:25]} 48... Kf6 {[%clk 0:00:09.2]} 49. Kg2
{[%clk 0:00:23.7]} 49... g5 {[%clk 0:00:10.1]} 50. a4 {[%clk 0:00:23.7]} 50...
Bc7 {[%clk 0:00:10.3]} 51. Rxc3 {[%clk 0:00:22.4]} 51... f4 {[%clk 0:00:11.2]}
52. Ra3 {[%clk 0:00:21.7]} 52... g4 {[%clk 0:00:11.7]} 53. a5 {[%clk 0:00:20.4]}
53... f3+ {[%clk 0:00:12.4]} 54. Bxf3 {[%clk 0:00:19.9]} 54... h4 {[%clk
0:00:13.3]} 55. Bxg4 {[%clk 0:00:19.6]} 55... Bb8 {[%clk 0:00:13.2]} 56. Bf3
{[%clk 0:00:19.4]} 56... Ba7 {[%clk 0:00:14.1]} 57. a6 {[%clk 0:00:19.3]} 57...
Ke5 {[%clk 0:00:15]} 58. Be4 {[%clk 0:00:17.9]} 58... Kd4 {[%clk 0:00:15.9]} 59.
Kh3 {[%clk 0:00:17.7]} 1-0

[Event "Early-Titled-Tuesday-Blitz-February-06-2024"]
[Site "Chess.com"]
[Date "2024.02.06"]
[Round "4"]
[White "biostatistician"]
[Black "the_chess_child"]
[Result "1-0"]
[WhiteElo "2615"]
[BlackElo "2874"]
[TimeControl "180+1"]
[EndTime "8:40:13 PST"]
[Termination "biostatistician won by resignation"]

1. d4 {[%clk 0:03:00.8]} 1... Nf6 {[%clk 0:02:58.7]} 2. Nf3 {[%clk 0:02:59.5]}
2... g6 {[%clk 0:02:59.1]} 3. c4 {[%clk 0:02:59.8]} 3... Bg7 {[%clk 0:02:59.4]}
4. Nc3 {[%clk 0:03:00.7]} 4... O-O {[%clk 0:03:00.1]} 5. e4 {[%clk 0:03:00.9]}
5... d6 {[%clk 0:03:00.5]} 6. Be2 {[%clk 0:03:01.8]} 6... Nbd7 {[%clk
0:03:00.1]} 7. O-O {[%clk 0:03:01.3]} 7... e5 {[%clk 0:03:00.3]} 8. Be3 {[%clk
0:03:01]} 8... Qe7 {[%clk 0:02:59.5]} 9. d5 {[%clk 0:02:59.4]} 9... c5 {[%clk
0:02:59.1]} 10. Ne1 {[%clk 0:02:58.2]} 10... Kh8 {[%clk 0:02:38.8]} 11. Nd3
{[%clk 0:02:57.6]} 11... Ng8 {[%clk 0:02:37.1]} 12. Qd2 {[%clk 0:02:55.1]} 12...
f5 {[%clk 0:02:30.4]} 13. f4 {[%clk 0:02:54.2]} 13... fxe4 {[%clk 0:02:21.5]}
14. Nf2 {[%clk 0:01:55.1]} 14... exf4 {[%clk 0:02:05.3]} 15. Bxf4 {[%clk
0:01:56]} 15... Ngf6 {[%clk 0:02:04.4]} 16. Bg5 {[%clk 0:01:46.3]} 16... Qe5
{[%clk 0:01:53.8]} 17. Bf4 {[%clk 0:01:27]} 17... Qe7 {[%clk 0:01:51.6]} 18. Bg5
{[%clk 0:01:26.8]} 18... Re8 {[%clk 0:01:49.4]} 19. Qe3 {[%clk 0:01:13.5]} 19...
Qe5 {[%clk 0:01:42.7]} 20. Bf4 {[%clk 0:01:08.2]} 20... Qd4 {[%clk 0:01:31.8]}
21. Nb5 {[%clk 0:01:02]} 21... Qxe3 {[%clk 0:01:29]} 22. Bxe3 {[%clk 0:01:02.9]}
22... Rf8 {[%clk 0:00:48.3]} 23. Nxd6 {[%clk 0:01:01.3]} 23... b6 {[%clk
0:00:43.5]} 24. Rae1 {[%clk 0:00:42.4]} 24... Ne5 {[%clk 0:00:37.9]} 25. Nfxe4
{[%clk 0:00:35.4]} 25... Nxe4 {[%clk 0:00:34.8]} 26. Nxe4 {[%clk 0:00:36.3]}
26... Bf5 {[%clk 0:00:32.5]} 27. Nd6 {[%clk 0:00:33.1]} 27... Bd3 {[%clk
0:00:32.4]} 28. b3 {[%clk 0:00:25.2]} 28... Rad8 {[%clk 0:00:25]} 29. Rxf8+
{[%clk 0:00:18.6]} 29... Rxf8 {[%clk 0:00:22.5]} 30. Bxd3 {[%clk 0:00:18.3]}
30... Nxd3 {[%clk 0:00:22.8]} 31. Rf1 {[%clk 0:00:19.2]} 31... Rxf1+ {[%clk
0:00:20.2]} 32. Kxf1 {[%clk 0:00:20.1]} 32... Nb4 {[%clk 0:00:21]} 33. a4 {[%clk
0:00:20.1]} 33... Nc2 {[%clk 0:00:21.2]} 34. Ke2 {[%clk 0:00:16.5]} 34... Na1
{[%clk 0:00:20.4]} 35. Nb5 {[%clk 0:00:17]} 35... Nxb3 {[%clk 0:00:20.7]} 36. d6
{[%clk 0:00:17.3]} 36... Bf6 {[%clk 0:00:20.5]} 37. Nxa7 {[%clk 0:00:17.2]}
37... Na5 {[%clk 0:00:19.6]} 38. d7 {[%clk 0:00:16.4]} 38... Kg7 {[%clk
0:00:17.1]} 39. Bf4 {[%clk 0:00:15.3]} 39... Bd8 {[%clk 0:00:14.7]} 40. Kd3
{[%clk 0:00:14.3]} 40... Kf7 {[%clk 0:00:15]} 41. Bd2 {[%clk 0:00:11.3]} 41...
Nb7 {[%clk 0:00:12.9]} 42. Nc6 {[%clk 0:00:11.7]} 42... Ke6 {[%clk 0:00:12.9]}
43. Nxd8+ {[%clk 0:00:10.3]} 43... Nxd8 {[%clk 0:00:13.8]} 44. Bg5 {[%clk
0:00:10.7]} 44... Kxd7 {[%clk 0:00:13.3]} 45. Bxd8 {[%clk 0:00:10]} 45... Kxd8
{[%clk 0:00:14.2]} 46. Ke4 {[%clk 0:00:10.9]} 46... Ke7 {[%clk 0:00:12.5]} 47.
Ke5 {[%clk 0:00:10.7]} 47... h6 {[%clk 0:00:10.9]} 48. h4 {[%clk 0:00:09.8]}
48... g5 {[%clk 0:00:05.8]} 49. hxg5 {[%clk 0:00:08.3]} 49... hxg5 {[%clk
0:00:06.7]} 50. Kf5 {[%clk 0:00:08.1]} 50... Kd6 {[%clk 0:00:07.2]} 51. g4
{[%clk 0:00:07.2]} 1-0